fUSD/lending_fUSD_20260407
["ID","MTS","AMOUNT","RATE_DAILY","PERIOD"]
[419954946,1775548247259,-220.688174,9.9e-05,2]
[419954947,1775548247269,-352.051272,9.9e-05,2]
[419954948,1775548247280,-352.051272,9.9e-05,2]
[419954949,1775548247289,-352.051272,9.9e-05,2]
[419954950,1775548247298,-352.051272,9.9e-05,2]
[419954951,1775548247314,-220.688174,9.9e-05,2]
[419954952,1775548247325,-220.688174,9.9e-05,2]
[419954953,1775548247335,-220.688174,9.9e-05,2]
[419954954,1775548247347,-500.0,9.908e-05,2]
[419954955,1775548247357,-1638.0007607,9.912e-05,2]
[419954956,1775548247369,-46170.7707402,9.912e-05,2]
[419954957,1775548247379,-151.0,9.912e-05,2]
[419954958,1775548247391,-151.0,9.912e-05,2]
[419954959,1775548247402,-151.0,9.912e-05,2]
[419954960,1775548247412,-151.0,9.912e-05,2]
[419954961,1775548247423,-151.0,9.912e-05,2]
[419954962,1775548247433,-151.0,9.912e-05,2]
[419954963,1775548247444,-153.27988,9.912e-05,2]
[419954964,1775548247455,-151.0,9.912e-05,2]
[419954965,1775548247465,-151.0,9.912e-05,2]
[419954966,1775548247476,-220.688174,9.912e-05,2]
[419954967,1775548247487,-352.051272,9.912e-05,2]
[419954968,1775548247498,-352.051272,9.912e-05,2]
[419954969,1775548247509,-352.051272,9.912e-05,2]
[419954970,1775548247519,-352.051272,9.912e-05,2]
[419954971,1775548247530,-220.688174,9.912e-05,2]
[419954972,1775548247541,-220.688174,9.912e-05,2]
[419954973,1775548247551,-220.688174,9.912e-05,2]
[419954974,1775548247562,-871.24,0.00010172,2]
[419954975,1775548247573,-170.26,0.00010228,2]
[419954976,1775548247584,-151.0,0.00010259,2]
[419954977,1775548247595,-151.0,0.00010259,2]
[419954978,1775548247605,-155.0,0.0001026,2]
[419954979,1775548247615,-151.0,0.00010261,2]
[419954980,1775548247626,-151.0,0.00010261,2]
[419954981,1775548247636,-150.0,0.000103,2]
[419954982,1775548247646,-2835.7,0.000103,2]
[419954983,1775548247657,-2835.7,0.000103,2]
[419954984,1775548247668,-151.0,0.000103,2]
[419954985,1775548247678,-151.0,0.000103,2]
[419954986,1775548247689,-151.0,0.000103,2]
[419954987,1775548247699,-151.0,0.000103,2]
[419954988,1775548247709,-284.337074,0.000103,2]
[419954989,1775548247719,-2000.0,0.00010331,2]
[419954990,1775548247729,-2000.0,0.00010331,2]
[419954991,1775548247739,-2000.0,0.00010331,2]
[419954992,1775548247749,-2000.0,0.00010331,2]
[419954993,1775548247759,-2000.0,0.00010331,2]
[419954994,1775548247770,-2000.0,0.00010331,2]
[419954995,1775548247780,-1600.0,0.00010401,2]
[419954996,1775548247791,-153.18,0.00010437,2]
[419954997,1775548247801,-1280.88388878,0.00010442,2]
[419954998,1775548247812,-200.0,0.00010442,2]
[419954999,1775548247825,-181.08010149,0.00010442,2]
[419955000,1775548247836,-871.24,0.00010446,2]
[419955001,1775548247847,-250.0,0.00010533,2]
[419955002,1775548247857,-420.0,0.00010533,2]
[419955003,1775548247867,-1000.0,0.00010552,2]
[419955004,1775548247878,-2600.0,0.00010552,2]
[419955005,1775548247888,-1680.0,0.00010592,2]
[419955006,1775548247898,-270.27904137,0.000107,2]
[419955007,1775548247908,-13406.24005461,0.000107,2]
[419955008,1775548247919,-222.737342,0.000107,2]
[419955009,1775548247928,-151.0,0.000107,2]
[419955010,1775548247939,-313.0,0.000107,2]
[419955011,1775548247949,-352.051272,0.000107,2]
[419955012,1775548247959,-352.051272,0.000107,2]
[419955013,1775548248509,-352.051272,0.000107,2]
[419955014,1775548248520,-220.688174,0.000107,2]
[419955015,1775548248529,-352.051272,0.000107,2]
[419955016,1775548248539,-220.688174,0.000107,2]
[419955017,1775548248549,-220.688174,0.000107,2]
[419955018,1775548248559,-220.688174,0.000107,2]
[419955019,1775548248569,-700.0,0.00010712,2]
[419955020,1775548248578,-871.24,0.0001072,2]
[419955021,1775548248588,-600.0,0.00010766,2]
[419955022,1775548248598,-255.0,0.00010777,2]
[419955023,1775548248609,-158.6548096,0.00010781,2]
[419955024,1775548248618,-170.26,0.00010791,2]
[419955025,1775548248628,-3037.5554331,0.00010796,2]
[419955026,1775548248638,-2758.3262461,0.00010796,2]
[419955027,1775548248648,-306.0,0.000108,2]
[419955028,1775548248658,-1000.0,0.000108,2]
[419955029,1775548248667,-702.6624163,0.00010804,2]
[419955030,1775548248678,-3636.67704375,0.00010878,2]
[419955031,1775548248687,-2000.0,0.00010883,2]
[419955032,1775548248697,-150.0,0.000109,3]
[419955033,1775548248707,-151.0,0.000109,2]
[419955034,1775548248717,-161.761635,0.000109,2]
[419955035,1775548248727,-151.0,0.000109,2]
[419955036,1775548248736,-151.0,0.000109,2]
[419955037,1775548248746,-7722.65332313,0.000109,2]
[419955038,1775548248756,-150.0,0.00010901,2]
[419955039,1775548248765,-150.0,0.00010959,2]
[419955040,1775548248776,-500.0,0.00010959,2]
[419955041,1775548248786,-151.0,0.00010959,2]
[419955042,1775548248796,-151.0,0.00010959,2]
[419955043,1775548248806,-151.0,0.00010959,2]
[419955044,1775548248816,-151.0,0.00010959,2]
[419955045,1775548248826,-151.0,0.00010959,2]
[419955046,1775548248835,-179.727262,0.00010959,2]
[419955047,1775548248845,-1328.27659266,0.0001099,2]
[419955048,1775548248854,-200.0,0.0001099,2]
[419955049,1775548248863,-187.78006525,0.0001099,2]
[419955050,1775548248873,-871.24,0.00010994,2]
[419955051,1775548248882,-1172.23,0.00011,2]
[419955052,1775548248893,-2977.69,0.00011,2]
[419955053,1775548248902,-469.33,0.00011,2]
[419955054,1775548248912,-1675.76,0.00011,2]
[419955055,1775548248921,-669.99,0.00011,2]
[419955056,1775548248931,-2082.05,0.00011,2]
[419955057,1775548248940,-2123.16,0.00011,2]
[419955058,1775548248950,-2627.97,0.00011,2]
[419955059,1775548248960,-1708.29,0.00011,2]
[419955060,1775548248970,-1708.29,0.00011,2]
[419955061,1775548248980,-5532.19597731,0.00011,2]
[419955062,1775548248990,-1088.13,0.00011,2]
[419955063,1775548249000,-2055.64,0.00011,2]
[419955064,1775548249010,-908.75,0.00011,2]
[419955065,1775548249021,-2690.07,0.00011,2]
[419955066,1775548249031,-1685.57,0.00011,2]
[419955067,1775548249040,-1685.57,0.00011,2]
[419955068,1775548249051,-151.0,0.00011,2]
[419955069,1775548249061,-151.0,0.00011,2]
[419955070,1775548249071,-151.0,0.00011,2]
[419955071,1775548249081,-151.0,0.00011,2]
[419955072,1775548249091,-352.051272,0.00011,2]
[419955073,1775548249101,-352.051272,0.00011,2]
[419955074,1775548249110,-352.051272,0.00011,2]
[419955075,1775548249120,-220.688174,0.00011,2]
[419955076,1775548249130,-352.051272,0.00011,2]
[419955077,1775548249141,-220.688174,0.00011,2]
[419955078,1775548249151,-220.688174,0.00011,2]
[419955079,1775548249161,-220.688172,0.00011,2]
[419955080,1775548249170,-151.0,0.0001101,2]
[419955081,1775548249180,-188.354,0.00011011,2]
[419955082,1775548249191,-200.0,0.00011011,2]
[419955083,1775548249201,-3524.0,0.0001102,2]
[419955084,1775548249211,-1347.0,0.0001102,2]
[419955085,1775548249221,-1046.0,0.0001102,2]
[419955086,1775548249231,-622.0,0.0001102,2]
[419955087,1775548249241,-1264.0,0.0001102,2]
[419955088,1775548249251,-925.0,0.0001102,2]
[419955089,1775548249260,-150.17,0.0001102,2]
[419955090,1775548249270,-1224.807,0.0001102,2]
[419955091,1775548249280,-415.388,0.0001102,2]
[419955092,1775548249290,-6022.0,0.0001102,2]
[419955093,1775548249300,-3772.0,0.0001102,2]
[419955094,1775548249310,-7722.6533231,0.00011041,2]
[419955095,1775548249320,-677.7702302,0.00011068,2]
[419955096,1775548249329,-615.465777,0.00011068,2]
[419955097,1775548249339,-152.27797544,0.00011075,2]
[419955098,1775548249349,-156.7851774,0.00011076,2]
[419955099,1775548249359,-1898.22978504,0.00011085,2]
[419955100,1775548249374,-894.17,0.00011085,2]
[419955101,1775548838801,-1000.0,9.181e-05,2]
[419955102,1775548841639,-200.0,9.181e-05,2]
[419955103,1775548841668,-800.0,9.182e-05,2]
[419955104,1775548844965,-1000.0,9.182e-05,2]
[419955105,1775548846331,-1000.0,9.182e-05,2]
[419955106,1775548847544,-200.0,9.182e-05,2]
[419955107,1775548847568,-282.0,9.182e-05,2]
[419955108,1775548847591,-300.0,9.473e-05,2]
[419955109,1775548847615,-159.87236491,9.474e-05,2]
[419955110,1775548847638,-58.12763509,9.475e-05,2]
[419955111,1775548850434,-414.97276491,9.475e-05,2]
[419955112,1775548850457,-159.87236489,9.586e-05,2]
[419955113,1775548850480,-425.1548702,9.588e-05,2]
[419955114,1775548851975,-55.8451298,9.588e-05,2]
[419955115,1775548852002,-944.1548702,9.589e-05,2]
[419955116,1775548855290,-1000.0,9.589e-05,2]
[419955117,1775548866725,-300.0,9.588e-05,2]
[419955118,1775548866753,-577.8472,9.589e-05,2]
[419955119,1775548872852,-1000.0,9.589e-05,2]
[419955120,1775548873983,-1000.0,9.589e-05,2]
[419955121,1775548875150,-1000.0,9.589e-05,2]
[419955122,1775548878047,-1000.0,9.589e-05,2]
[419955123,1775548879282,-1000.0,9.589e-05,2]
[419955127,1775548960537,-700.0,9.182e-05,2]
[419955128,1775548960561,-300.0,9.182e-05,2]
[419955129,1775548962579,-1000.0,9.182e-05,2]
[419955130,1775548963944,-500.0,9.182e-05,2]
[419955131,1775548963970,-300.0,9.588e-05,2]
[419955132,1775548963999,-200.0,9.589e-05,2]
[419955133,1775548965497,-1000.0,9.589e-05,2]
[419955134,1775548966716,-1000.0,9.589e-05,2]
[419955135,1775549056345,-1000.0,9.589e-05,2]
[419955136,1775549059167,-1000.0,9.589e-05,2]
[419955137,1775549061374,-1000.0,9.589e-05,2]
[419955138,1775549062496,-1000.0,9.589e-05,2]
[419955139,1775549063506,-1000.0,9.589e-05,2]
[419955140,1775549069631,168.91,4.864e-05,2]
[419955141,1775549069817,168.91,5.675e-05,2]
[419955142,1775549070275,168.91,6.485e-05,2]
[419955143,1775549070658,168.91,7.296e-05,2]
[419955144,1775549070868,168.91,8.107e-05,2]
[419955145,1775549197846,150.0,8.8e-05,2]
[419955147,1775549334626,-168.91,8.918e-05,2]
[419955148,1775549334653,-831.09,9.182e-05,2]
[419955149,1775549335649,-768.91,9.182e-05,2]
[419955150,1775549335672,-231.09,9.182e-05,2]
[419955151,1775549337739,-468.91,9.182e-05,2]
[419955152,1775549337768,-531.09,9.589e-05,2]
[419955153,1775549345453,-1000.0,9.589e-05,2]
[419955154,1775549346418,-1000.0,9.589e-05,2]
[419955155,1775549363976,-1000.0,9.182e-05,2]
[419955156,1775549368747,-500.0,9.182e-05,2]
[419955157,1775549368773,-500.0,9.456e-05,2]
[419955158,1775549369946,-100.0,9.456e-05,2]
[419955159,1775549369972,-246.9079298,9.589e-05,2]
[419955160,1775549369995,-500.0,9.651e-05,2]
[419955161,1775549370018,-153.0920702,9.651e-05,2]
[419955162,1775549372618,-6.78029469,9.651e-05,2]
[419955163,1775549372641,-993.21970531,9.687e-05,2]
[419955164,1775549373821,-1000.0,9.687e-05,2]
[419955174,1775549432272,-1600.00113981,9.484e-05,2]
[419955175,1775549432284,-8299.14902219,9.484e-05,2]
[419955176,1775549432295,-1029.76010834,9.687e-05,2]
[419955177,1775549432304,-150.0,9.696e-05,2]
[419955178,1775549432314,-300.0,9.696e-05,2]
[419955179,1775549432325,-1200.0,9.696e-05,2]
[419955180,1775549432335,-500.0,9.697e-05,2]
[419955181,1775549432345,-643.57041639,9.697e-05,2]
[419955182,1775549432355,-643.57041639,9.697e-05,2]
[419955183,1775549432365,-643.57041639,9.697e-05,2]
[419955184,1775549432375,-643.57041639,9.697e-05,2]
[419955185,1775549432385,-643.57041639,9.697e-05,2]
[419955186,1775549432395,-643.57041639,9.697e-05,2]
[419955187,1775549432406,-643.57041639,9.697e-05,2]
[419955188,1775549432416,-643.57041639,9.697e-05,2]
[419955189,1775549432426,-643.57041639,9.697e-05,2]
[419955190,1775549432436,-643.57041639,9.697e-05,2]
[419955191,1775549432447,-643.57041639,9.697e-05,2]
[419955192,1775549432457,-643.57041639,9.697e-05,2]
[419955193,1775549432467,-643.57041639,9.697e-05,2]
[419955194,1775549432477,-643.57041639,9.697e-05,2]
[419955195,1775549432487,-643.57041639,9.697e-05,2]
[419955196,1775549432498,-643.57041639,9.697e-05,2]
[419955197,1775549432507,-643.57041639,9.697e-05,2]
[419955198,1775549432518,-643.57041639,9.697e-05,2]
[419955199,1775549432528,-643.57041639,9.697e-05,2]
[419955200,1775549432538,-643.57041639,9.697e-05,2]
[419955201,1775549432548,-643.57041639,9.697e-05,2]
[419955202,1775549432559,-643.57041639,9.697e-05,2]
[419955203,1775549432568,-643.57041639,9.697e-05,2]
[419955204,1775549432579,-643.57041639,9.697e-05,2]
[419955205,1775549432589,-643.57041639,9.697e-05,2]
[419955206,1775549432599,-643.57041639,9.697e-05,2]
[419955207,1775549432610,-643.57041639,9.697e-05,2]
[419955208,1775549432620,-643.57041639,9.697e-05,2]
[419955209,1775549432631,-643.57041639,9.697e-05,2]
[419955210,1775549432641,-643.57041639,9.697e-05,2]
[419955211,1775549432651,-643.57041639,9.697e-05,2]
[419955212,1775549432661,-643.57041639,9.697e-05,2]
[419955213,1775549432672,-643.57041639,9.697e-05,2]
[419955214,1775549432683,-643.57041639,9.697e-05,2]
[419955215,1775549432693,-643.57041639,9.697e-05,2]
[419955216,1775549432704,-643.57041639,9.697e-05,2]
[419955217,1775549432713,-643.57041639,9.697e-05,2]
[419955218,1775549432723,-643.57041639,9.697e-05,2]
[419955219,1775549432733,-643.57041639,9.697e-05,2]
[419955220,1775549432744,-643.57041639,9.697e-05,2]
[419955221,1775549432754,-643.57041639,9.697e-05,2]
[419955222,1775549432764,-643.57041639,9.697e-05,2]
[419955223,1775549432773,-643.57041639,9.697e-05,2]
[419955224,1775549432783,-643.57041639,9.697e-05,2]
[419955225,1775549432794,-643.57041639,9.697e-05,2]
[419955226,1775549432804,-643.57041639,9.697e-05,2]
[419955227,1775549432815,-643.57041639,9.697e-05,2]
[419955228,1775549432826,-643.57041639,9.697e-05,2]
[419955229,1775549432837,-638.61987473,9.697e-05,2]
[419955230,1775549432848,-638.61987473,9.697e-05,2]
[419955231,1775549432858,-638.61987473,9.697e-05,2]
[419955232,1775549432869,-638.61987473,9.697e-05,2]
[419955233,1775549432879,-638.61987473,9.697e-05,2]
[419955234,1775549432889,-638.61987473,9.697e-05,2]
[419955235,1775549432899,-638.61987473,9.697e-05,2]
[419955236,1775549432909,-638.61987473,9.697e-05,2]
[419955237,1775549432919,-638.61987473,9.697e-05,2]
[419955238,1775549432929,-638.61987473,9.697e-05,2]
[419955239,1775549432940,-638.61987473,9.697e-05,2]
[419955240,1775549432950,-638.61987473,9.697e-05,2]
[419955241,1775549432961,-638.61987473,9.697e-05,2]
[419955242,1775549432971,-638.61987473,9.697e-05,2]
[419955243,1775549432983,-638.61987473,9.697e-05,2]
[419955244,1775549432993,-638.61987473,9.697e-05,2]
[419955245,1775549433003,-638.61987473,9.697e-05,2]
[419955246,1775549433013,-638.61987473,9.697e-05,2]
[419955247,1775549433023,-638.61987473,9.697e-05,2]
[419955248,1775549433033,-638.61987473,9.697e-05,2]
[419955249,1775549433043,-638.61987473,9.697e-05,2]
[419955250,1775549433054,-638.61987473,9.697e-05,2]
[419955251,1775549433064,-638.61987473,9.697e-05,2]
[419955252,1775549433074,-638.61987473,9.697e-05,2]
[419955253,1775549433084,-638.61987473,9.697e-05,2]
[419955254,1775549433094,-638.61987473,9.697e-05,2]
[419955255,1775549433103,-638.61987473,9.697e-05,2]
[419955256,1775549433113,-638.61987473,9.697e-05,2]
[419955257,1775549433123,-632.23367599,9.697e-05,2]
[419955258,1775549433133,-632.23367599,9.697e-05,2]
[419955259,1775549433143,-632.23367599,9.697e-05,2]
[419955260,1775549433153,-632.23367599,9.697e-05,2]
[419955261,1775549433163,-632.23367599,9.697e-05,2]
[419955262,1775549433174,-632.23367599,9.697e-05,2]
[419955263,1775549433184,-632.23367599,9.697e-05,2]
[419955264,1775549433195,-632.23367599,9.697e-05,2]
[419955265,1775549433205,-632.23367599,9.697e-05,2]
[419955266,1775549433216,-632.23367595,9.697e-05,2]
[419955267,1775549433228,-168.91,9.728e-05,2]
[419955268,1775549433238,-1073.72444779,9.774e-05,2]
[419955269,1775549433248,-623.58710448,9.774e-05,2]
[419955270,1775549433259,-200.0,9.774e-05,2]
[419955271,1775549433269,-500.0,9.774e-05,2]
[419955272,1775549433279,-1235.18214925,9.774e-05,2]
[419955273,1775549433290,-578.20924308,9.774e-05,2]
[419955275,1775549433300,-174.61919141,9.774e-05,2]
[419955277,1775549433310,-1000.0,9.8e-05,2]
[419955279,1775549433320,-20861.0881,9.8e-05,2]
[419955281,1775549433331,-21761.29,0.0001,2]
[419955283,1775549433341,-500.0,0.0001,2]
[419955285,1775549433352,-500.0,0.0001,2]
[419955286,1775549433363,-295.9728988,0.0001,2]
[419955287,1775549433374,-1199.20597015,0.0001,2]
[419955288,1775549433384,-151.0,0.0001,2]
[419955289,1775549433395,-5533.0,0.000102,3]
[419955290,1775549433406,-260.0,0.00010241,2]
[419955291,1775549433417,-200.0,0.00010322,2]
[419955292,1775549433428,-1280.88388878,0.00010322,2]
[419955293,1775549433439,-181.08010149,0.00010322,2]
[419955294,1775549433450,-316.41909116,0.00010396,2]
[419955295,1775549433461,-5533.0,0.000104,5]
[419955296,1775549433471,-153.18,0.00010412,2]
[419955297,1775549433481,-250.0,0.00010496,2]
[419955298,1775549433492,-1500.0,0.00010552,2]
[419955299,1775549433503,-150.683,0.00010603,2]
[419955300,1775549433514,-3718.776,0.00010606,2]
[419955301,1775549433524,-255.0,0.00010666,2]
[419955302,1775549433533,-420.0,0.00010666,2]
[419955303,1775549433543,-1680.0,0.00010666,2]
[419955304,1775549433552,-2208.798961,0.00010687,2]
[419955305,1775549433562,-8471.364324,0.000107,2]
[419955306,1775549433572,-365.26930611,0.00010778,2]
[419955307,1775549433581,-600.0,0.00010826,2]
[419955308,1775549433591,-200.0,0.0001087,2]
[419955309,1775549433600,-1328.27659266,0.0001087,2]
[419955310,1775549433611,-187.78006525,0.0001087,2]
[419955311,1775549433620,-2424.4513625,0.00010878,2]
[419955312,1775549433631,-554.61,0.00010897,2]
[419955313,1775549433640,-151.0,0.000109,2]
[419955314,1775549433650,-5791.98999236,0.000109,2]
[419955315,1775549433659,-5791.98999232,0.000109,2]
[419955316,1775549433669,-273.03813537,0.00010933,2]
[419955317,1775549433678,-462.27,0.00010934,2]
[419955318,1775549433688,-492.8496659,0.00010955,2]
[419955319,1775549433698,-150.0,0.00010959,2]
[419955320,1775549433707,-500.0,0.00010966,2]
[419955321,1775549433717,-500.0,0.00010966,2]
[419955322,1775549433727,-500.0,0.00010966,2]
[419955323,1775549433736,-500.0,0.00010966,2]
[419955324,1775549433745,-500.0,0.00010966,2]
[419955325,1775549433755,-500.0,0.00010966,2]
[419955326,1775549433764,-500.0,0.00010966,2]
[419955327,1775549433774,-500.0,0.00010966,2]
[419955328,1775549433783,-500.0,0.00010966,2]
[419955329,1775549433792,-500.0,0.00010966,2]
[419955330,1775549433801,-500.0,0.00010966,2]
[419955331,1775549433810,-500.0,0.00010966,2]
[419955332,1775549433819,-500.0,0.00010966,2]
[419955333,1775549433828,-500.0,0.00010966,2]
[419955334,1775549433838,-500.0,0.00010966,2]
[419955335,1775549433847,-500.0,0.00010966,2]
[419955336,1775549433856,-500.0,0.00010966,2]
[419955337,1775549433866,-500.0,0.00010966,2]
[419955338,1775549433876,-500.0,0.00010966,2]
[419955339,1775549433885,-500.0,0.00010966,2]
[419955340,1775549433898,-1264.0,0.00010966,2]
[419955341,1775549433908,-150.0,0.00010966,2]
[419955342,1775549433918,-925.0,0.00010966,2]
[419955343,1775549433928,-1217.0,0.00010966,2]
[419955344,1775549433937,-2000.0,0.0001097,2]
[419955345,1775549433947,-2000.0,0.0001097,2]
[419955346,1775549433957,-1407.732,0.00010976,2]
[419955347,1775549433967,-2482.442,0.00010976,2]
[419955348,1775549433977,-3772.0,0.00010976,2]
[419955349,1775549433986,-2000.0,0.0001099,2]
[419955350,1775549433996,-150.0,0.00011,2]
[419955351,1775549434006,-313.0,0.00011,2]
[419955352,1775549434016,-306.0,0.00011,2]
[419955353,1775549434025,-1000.0,0.00011,2]
[419955354,1775549434035,-2000.0,0.0001102,2]
[419955355,1775549434046,-2000.0,0.00011085,2]
[419955356,1775549434055,-2000.0,0.00011085,2]
[419955357,1775549434065,-167.0,0.00011095,2]
[419955358,1775549434074,-167.0,0.00011095,2]
[419955359,1775549434084,-167.0,0.00011095,2]
[419955360,1775549434094,-167.0,0.00011095,2]
[419955361,1775549434103,-167.0,0.00011095,2]
[419955362,1775549434113,-167.0,0.00011095,2]
[419955363,1775549434123,-167.0,0.00011095,2]
[419955364,1775549434132,-184.88421069,0.00011095,2]
[419955365,1775549434142,-151.0,0.00011098,2]
[419955366,1775549434152,-34140.38462653,0.00011099,2]
[419955367,1775549434167,-5339.88621947,0.00011099,2]
[419955368,1775549434176,-15804.29598664,0.00011099,2]
[419955369,1775549434186,-607.56498033,0.00011099,2]
[419955370,1775549435023,-2168.09710004,0.00011099,2]
[419955371,1775549435413,-3140.12665687,0.00011099,2]
[419955372,1775549435437,-1258.9,0.00011099,2]
[419955373,1775549435449,-374.94758386,0.00011099,2]
[419955374,1775549435461,-298.86,0.00011099,2]
[419955375,1775549435477,-15827.47853818,0.00011099,2]
[419955376,1775549435487,-2448.79766101,0.00011099,2]
[419955377,1775549435499,-396.09585617,0.00011099,2]
[419955378,1775549435519,-759.87220332,0.00011099,2]
[419955383,1775549437691,-313.0,0.000108,2]
[419955384,1775549437700,-1616.30090833,0.00010878,2]
[419955385,1775549437709,-20485.22373167,0.00011099,2]
[419955386,1775549437902,-580.23789574,0.00011099,2]
[419955387,1775549437957,-3665.0,0.00011099,2]
[419955388,1775549438011,-1688.93131147,0.00011099,2]
[419955389,1775549438023,-9456.11218654,0.00011099,2]
[419955390,1775549438033,-26369.38441801,0.00011099,2]
[419955391,1775549438042,-26369.384418,0.00011099,2]
[419955392,1775549438052,-2846.50990282,0.00011099,2]
[419955393,1775549438065,-6289.73662505,0.00011099,2]
[419955408,1775549444141,-1077.53393889,0.00010878,2]
[419955409,1775549444151,-1433.46287595,0.00010976,2]
[419955410,1775549444178,-4588.53712405,0.00010976,2]
[419955411,1775549444187,-12344.72942314,0.00011099,2]
[419955412,1775549444209,-1026.07193978,0.00011099,2]
[419955417,1775549445546,-349.8,0.00011099,2]
[419955418,1775549445914,-3512.53652721,0.00011099,2]
[419955419,1775549445925,-541.0,0.00011099,2]
[419955420,1775549445935,-500.0,0.00011099,2]
[419955421,1775549445945,-500.0,0.00011099,2]
[419955422,1775549445955,-500.0,0.00011099,2]
[419955423,1775549445964,-500.0,0.00011099,2]
[419955424,1775549445974,-500.0,0.00011099,2]
[419955425,1775549445984,-500.0,0.00011099,2]
[419955426,1775549445993,-500.0,0.00011099,2]
[419955427,1775549446003,-500.0,0.00011099,2]
[419955428,1775549446013,-500.0,0.00011099,2]
[419955429,1775549446023,-500.0,0.00011099,2]
[419955430,1775549446032,-500.0,0.00011099,2]
[419955432,1775549446042,-500.0,0.00011099,2]
[419955434,1775549446052,-500.0,0.00011099,2]
[419955436,1775549446061,-500.0,0.00011099,2]
[419955438,1775549446070,-500.0,0.00011099,2]
[419955440,1775549446079,-500.0,0.00011099,2]
[419955442,1775549446089,-705.0,0.00011099,2]
[419955443,1775549446099,-1998.14644117,0.000111,2]
[419955444,1775549446110,-1508.51898219,0.000111,2]
[419955445,1775549446119,-2037.93078372,0.000111,2]
[419955446,1775549446130,-150.0,0.00011118,2]
[419955447,1775549446139,-150.0,0.00011118,2]
[419955448,1775549446149,-200.0,0.00011118,2]
[419955449,1775549446159,-150.0,0.00011118,2]
[419955450,1775549446169,-150.471,0.00011118,2]
[419955451,1775549446178,-150.0,0.00011118,2]
[419955452,1775549446188,-150.0,0.00011118,2]
[419955453,1775549446198,-150.17,0.00011118,2]
[419955454,1775549446208,-150.0,0.00011118,2]
[419955455,1775549446218,-150.0,0.00011118,2]
[419955456,1775549446228,-150.0,0.00011118,2]
[419955458,1775549446238,-150.119,0.00011118,2]
[419955460,1775549446247,-150.0,0.00011118,2]
[419955462,1775549446257,-3524.0,0.00011118,2]
[419955464,1775549446267,-622.0,0.00011118,2]
[419955466,1775549446277,-1347.0,0.00011118,2]
[419955468,1775549446287,-1046.0,0.00011118,2]
[419955470,1775549446297,-159.48,0.00011206,2]
[419955472,1775549446306,-152.51,0.00011233,2]
[419955474,1775549446315,-155.0,0.00011286,2]
[419955476,1775549446325,-170.26,0.00011353,2]
[419955477,1775549446334,-200.0,0.00011418,2]
[419955479,1775549446343,-1377.42282659,0.00011418,2]
[419955481,1775549446352,-194.72792766,0.00011418,2]
[419955483,1775549446361,-5791.98999232,0.0001142,2]
[419955485,1775549446370,-153.18,0.00011453,2]
[419955487,1775549446380,-160.0,0.00011466,2]
[419955489,1775549446390,-5751.8,0.00011507,2]
[419955491,1775549446400,-1600.0,0.00011556,2]
[419955493,1775549446411,-500.0,0.00011589,2]
[419955495,1775549446420,-500.0,0.00011589,2]
[419955497,1775549446430,-39480.27084592,0.00011719,2]
[419955499,1775549446441,-26369.384418,0.00011719,2]
[419955501,1775549446451,-433.0,0.00011732,2]
[419955502,1775549446460,-587.0,0.00011732,2]
[419955503,1775549446470,-1361.40830222,0.00011893,2]
[419955504,1775549446481,-150.0,0.000119,2]
[419955505,1775549446490,-150.0,0.000119,2]
[419955506,1775549446500,-170.26,0.00011916,2]
[419955507,1775549446509,-1500.0,0.00011922,2]
[419955508,1775549446519,-168.38,0.00011948,2]
[419955509,1775549446529,-168.38,0.00011948,2]
[419955510,1775549446538,-168.37,0.00011956,2]
[419955511,1775549446548,-168.37,0.00011956,2]
[419955512,1775549446557,-200.0,0.00011966,2]
[419955513,1775549446566,-201.93286099,0.00011966,2]
[419955514,1775549446575,-350.21,0.00011986,2]